fUST/lending_fUST_20250720
["ID","MTS","AMOUNT","RATE_DAILY","PERIOD"]
[373417206,1752994232590,-460.0,0.00017253,2]
[373417207,1752994232599,-460.0,0.00017253,2]
[373417210,1752994232609,-460.0,0.00017253,2]
[373417211,1752994232619,-460.0,0.00017253,2]
[373417214,1752994232628,-460.0,0.00017253,2]
[373417216,1752994232638,-460.0,0.00017253,2]
[373417218,1752994232648,-356.28136221,0.00017253,2]
[373417220,1752994232657,-460.0,0.00017254,2]
[373417221,1752994232667,-460.0,0.00017254,2]
[373417222,1752994232677,-460.0,0.00017254,2]
[373417224,1752994232687,-460.0,0.00017254,2]
[373417226,1752994232696,-460.0,0.00017254,2]
[373417228,1752994232705,-460.0,0.00017254,2]
[373417230,1752994232715,-469.6189657,0.00017254,2]
[373417232,1752994232724,-460.0,0.00017254,2]
[373417234,1752994232734,-460.0,0.00017254,2]
[373417236,1752994232743,-460.0,0.00017254,2]
[373417238,1752994232753,-460.0,0.00017254,2]
[373417240,1752994232763,-460.0,0.00017254,2]
[373417242,1752994232772,-460.0,0.00017254,2]
[373417244,1752994232782,-460.0,0.00017254,2]
[373417246,1752994232791,-460.0,0.00017254,2]
[373417248,1752994232801,-460.0,0.00017254,2]
[373417250,1752994232810,-460.0,0.00017254,2]
[373417252,1752994232820,-460.0,0.00017254,2]
[373417254,1752994232829,-460.0,0.00017254,2]
[373417256,1752994232838,-460.0,0.00017254,2]
[373417258,1752994232848,-460.0,0.00017254,2]
[373417260,1752994232858,-460.0,0.00017254,2]
[373417262,1752994232867,-460.0,0.00017254,2]
[373417263,1752994232876,-460.0,0.00017254,2]
[373417264,1752994232885,-460.0,0.00017254,2]
[373417266,1752994232895,-460.0,0.00017254,2]
[373417268,1752994232904,-460.0,0.00017254,2]
[373417269,1752994232914,-460.0,0.00017254,2]
[373417270,1752994232923,-460.0,0.00017254,2]
[373417272,1752994232933,-460.0,0.00017254,2]
[373417273,1752994232943,-460.0,0.00017254,2]
[373417274,1752994232952,-460.0,0.00017254,2]
[373417275,1752994232962,-2022.21,0.00017254,2]
[373417276,1752994232971,-460.0,0.00017254,2]
[373417277,1752994232981,-703.9,0.00017254,2]
[373417278,1752994232991,-460.0,0.00017254,2]
[373417279,1752994233000,-460.0,0.00017254,2]
[373417280,1752994233010,-685.67,0.00017254,2]
[373417281,1752994233022,-460.0,0.00017254,2]
[373417282,1752994233033,-460.0,0.00017254,2]
[373417283,1752994233043,-460.0,0.00017254,2]
[373417284,1752994233054,-460.0,0.00017254,2]
[373417285,1752994233064,-460.0,0.00017254,2]
[373417286,1752994233074,-460.0,0.00017254,2]
[373417287,1752994233083,-460.0,0.00017254,2]
[373417288,1752994233093,-1785.67,0.00017254,2]
[373417289,1752994233102,-460.0,0.00017254,2]
[373417290,1752994233112,-2995.61,0.00017254,2]
[373417291,1752994233121,-214.75,0.00017254,2]
[373417292,1752994233131,-628.57,0.00017254,2]
[373417293,1752994233141,-460.0,0.00017254,2]
[373417294,1752994233151,-460.0,0.00017254,2]
[373417295,1752994233160,-460.0,0.00017254,2]
[373417296,1752994233170,-460.0,0.00017254,2]
[373417297,1752994233180,-460.0,0.00017254,2]
[373417298,1752994233190,-460.0,0.00017254,2]
[373417299,1752994233200,-460.0,0.00017254,2]
[373417300,1752994233209,-460.0,0.00017254,2]
[373417301,1752994233219,-460.0,0.00017254,2]
[373417302,1752994233228,-460.0,0.00017254,2]
[373417303,1752994233238,-1636.28,0.00017254,2]
[373417304,1752994233247,-460.0,0.00017254,2]
[373417305,1752994233258,-655.07,0.00017254,2]
[373417306,1752994233268,-460.0,0.00017254,2]
[373417307,1752994233278,-460.0,0.00017254,2]
[373417308,1752994233287,-461.66145791,0.00017254,2]
[373417309,1752994233296,-215.11488174,0.00017254,2]
[373417310,1752994233306,-460.0,0.00017254,2]
[373417311,1752994233315,-460.0,0.00017254,2]
[373417312,1752994233325,-460.0,0.00017254,2]
[373417313,1752994233334,-460.0,0.00017254,2]
[373417314,1752994233343,-460.0,0.00017254,2]
[373417315,1752994233353,-461.29636618,0.00017254,2]
[373417316,1752994233362,-460.0,0.00017254,2]
[373417317,1752994233371,-460.0,0.00017254,2]
[373417318,1752994233381,-460.0,0.00017254,2]
[373417319,1752994233391,-171.62878727,0.00017255,2]
[373417320,1752994233401,-460.0,0.00017255,2]
[373417321,1752994233410,-460.0,0.00017255,2]
[373417322,1752994233423,-460.0,0.00017255,2]
[373417323,1752994233432,-460.0,0.00017255,2]
[373417324,1752994233441,-460.0,0.00017255,2]
[373417325,1752994233451,-593.44166536,0.00017255,2]
[373417326,1752994233460,-460.0,0.00017255,2]
[373417327,1752994233470,-460.0,0.00017255,2]
[373417328,1752994233479,-460.0,0.00017255,2]
[373417329,1752994233488,-460.0,0.00017255,2]
[373417330,1752994233498,-461.43667274,0.00017255,2]
[373417331,1752994233508,-460.0,0.00017255,2]
[373417332,1752994233517,-460.0,0.00017255,2]
[373417333,1752994233527,-460.0,0.00017255,2]
[373417334,1752994233537,-202.91460191,0.00017255,2]
[373417335,1752994233550,-257.08539809,0.00017255,2]
[373417336,1752994233560,-460.0,0.00017255,2]
[373417337,1752994233573,-460.0,0.00017255,2]
[373417338,1752994233583,-460.0,0.00017255,2]
[373417339,1752994233592,-461.39008951,0.00017255,2]
[373417340,1752994233602,-505.50893237,0.00017255,2]
[373417341,1752994233611,-460.0,0.00017255,2]
[373417342,1752994233622,-460.0,0.00017255,2]
[373417343,1752994233632,-460.0,0.00017255,2]
[373417344,1752994233642,-460.0,0.00017255,2]
[373417345,1752994233651,-460.0,0.00017255,2]
[373417346,1752994233662,-460.0,0.00017255,2]
[373417347,1752994233671,-460.0,0.00017255,2]
[373417348,1752994233680,-500.0,0.00017255,2]
[373417349,1752994233690,-461.06320191,0.00017255,2]
[373417350,1752994233700,-460.0,0.00017255,2]
[373417351,1752994233709,-460.0,0.00017255,2]
[373417352,1752994233719,-954.95,0.00017255,2]
[373417353,1752994233729,-460.0,0.00017255,2]
[373417354,1752994233739,-460.0,0.00017255,2]
[373417355,1752994233748,-1266.77,0.00017255,2]
[373417356,1752994233758,-460.0,0.00017255,2]
[373417357,1752994233769,-460.0,0.00017255,2]
[373417358,1752994233779,-460.0,0.00017255,2]
[373417359,1752994233788,-952.7,0.00017255,2]
[373417360,1752994233797,-460.0,0.00017256,2]
[373417361,1752994233805,-460.0,0.00017256,2]
[373417362,1752994233814,-500.40777051,0.00017256,2]
[373417363,1752994233823,-460.0,0.00017256,2]
[373417364,1752994233831,-460.0,0.00017256,2]
[373417365,1752994233840,-460.0,0.00017256,2]
[373417366,1752994233850,-439.73831645,0.00017256,2]
[373417367,1752994233860,-460.0,0.00017256,2]
[373417368,1752994233869,-460.0,0.00017256,2]
[373417369,1752994233878,-454.5608512,0.00017256,2]
[373417370,1752994233888,-460.0,0.00017256,2]
[373417371,1752994233898,-460.0,0.00017256,2]
[373417372,1752994233908,-460.0,0.00017256,2]
[373417373,1752994233917,-460.0,0.00017256,2]
[373417374,1752994233926,-609.63,0.00017256,2]
[373417375,1752994233936,-460.0,0.00017256,2]
[373417376,1752994233945,-460.0,0.00017256,2]
[373417377,1752994233955,-220.10685191,0.00017256,2]
[373417378,1752994233964,-502.7,0.00017256,2]
[373417379,1752994233974,-460.0,0.00017256,2]
[373417380,1752994233983,-460.0,0.00017256,2]
[373417381,1752994233992,-1001.18757528,0.00017256,2]
[373417382,1752994234001,-460.0,0.00017256,2]
[373417383,1752994234011,-570.6491588,0.00017256,2]
[373417384,1752994234021,-460.0,0.00017256,2]
[373417385,1752994234031,-460.0,0.00017256,2]
[373417386,1752994234040,-460.0,0.00017256,2]
[373417387,1752994234050,-460.0,0.00017256,2]
[373417388,1752994234059,-679.03,0.00017256,2]
[373417389,1752994234069,-460.0,0.00017256,2]
[373417390,1752994234078,-467.41560491,0.00017256,2]
[373417391,1752994234087,-460.0,0.00017256,2]
[373417392,1752994234097,-460.0,0.00017256,2]
[373417393,1752994234106,-460.0,0.00017256,2]
[373417394,1752994234115,-460.0,0.00017256,2]
[373417395,1752994234124,-460.0,0.00017256,2]
[373417396,1752994234134,-460.0,0.00017256,2]
[373417397,1752994234143,-460.0,0.00017256,2]
[373417398,1752994234153,-460.0,0.00017256,2]
[373417399,1752994234162,-460.0,0.00017256,2]
[373417400,1752994234172,-460.0,0.00017256,2]
[373417401,1752994234181,-460.0,0.00017256,2]
[373417402,1752994234190,-460.0,0.00017256,2]
[373417403,1752994234200,-460.0,0.00017256,2]
[373417404,1752994234209,-460.0,0.00017256,2]
[373417405,1752994234219,-590.67,0.00017256,2]
[373417406,1752994234228,-460.0,0.00017256,2]
[373417407,1752994234238,-276.65008471,0.00017256,2]
[373417408,1752994234247,-460.0,0.00017256,2]
[373417409,1752994234257,-445.44057393,0.00017256,2]
[373417410,1752994234267,-460.0,0.00017256,2]
[373417411,1752994234276,-460.0,0.00017256,2]
[373417412,1752994234285,-460.0,0.00017256,2]
[373417413,1752994234295,-460.0,0.00017256,2]
[373417414,1752994234304,-460.0,0.00017256,2]
[373417415,1752994234313,-460.0,0.00017256,2]
[373417416,1752994234323,-460.0,0.00017257,2]
[373417417,1752994234332,-1508.08,0.00017257,2]
[373417418,1752994234342,-460.0,0.00017257,2]
[373417419,1752994234352,-460.0,0.00017257,2]
[373417420,1752994234362,-460.0,0.00017257,2]
[373417421,1752994234371,-460.0,0.00017257,2]
[373417422,1752994234381,-523.59,0.00017257,2]
[373417423,1752994234390,-460.0,0.00017257,2]
[373417424,1752994234400,-500.0,0.00017257,2]
[373417425,1752994234409,-500.0,0.00017257,2]
[373417426,1752994234420,-193.39,0.00017257,2]
[373417427,1752994234430,-460.0,0.00017257,2]
[373417428,1752994234439,-460.0,0.00017257,2]
[373417429,1752994234572,-460.0,0.00017258,2]
[373417430,1752994234582,-460.0,0.00017258,2]
[373417431,1752994234592,-460.0,0.00017258,2]
[373417432,1752994234601,-460.0,0.00017258,2]
[373417433,1752994234611,-460.0,0.00017258,2]
[373417434,1752994234621,-460.0,0.00017258,2]
[373417435,1752994234630,-179.51177599,0.00017258,2]
[373417436,1752994234642,-500.0,0.00017258,2]
[373417437,1752994234651,-500.0,0.00017258,2]
[373417438,1752994234660,-680.5,0.00017258,2]
[373417439,1752994234670,-952.62,0.00017258,2]
[373417440,1752994234679,-460.0,0.00017259,2]
[373417441,1752994234689,-500.0,0.00017259,2]
[373417442,1752994234699,-317.6,0.00017259,2]
[373417443,1752994234708,-1711.89,0.0001726,2]
[373417444,1752994234718,-460.0,0.0001726,2]
[373417445,1752994234727,-1410.71,0.0001736,2]
[373417446,1752994234737,-460.0,0.0001736,2]
[373417447,1752994234747,-3997.14,0.0001736,2]
[373417448,1752994234756,-1333.4,0.0001736,2]
[373417449,1752994234765,-460.0,0.0001736,2]
[373417450,1752994234774,-658.23,0.00017518,3]
[373417451,1752994234783,-329.11,0.00017518,3]
[373417452,1752994234793,-164.56,0.00017518,3]
[373417453,1752994234802,-493.7,0.00017518,3]
[373417454,1752994234811,-460.0,0.00017527,2]
[373417455,1752994234820,-460.0,0.00017527,2]
[373417456,1752994234830,-460.0,0.00017527,2]
[373417457,1752994234839,-460.0,0.00017527,2]
[373417458,1752994234848,-460.0,0.00017527,2]
[373417459,1752994234858,-460.0,0.00017527,2]
[373417460,1752994234867,-503.7560223,0.00017527,2]
[373417461,1752994234876,-1125.14,0.00017527,2]
[373417462,1752994234886,-460.0,0.00017528,2]
[373417463,1752994234895,-460.0,0.00017528,2]
[373417464,1752994234904,-460.0,0.00017528,2]
[373417465,1752994234913,-460.0,0.00017528,2]
[373417466,1752994234923,-460.0,0.00017528,2]
[373417467,1752994234932,-460.0,0.00017528,2]
[373417468,1752994234943,-460.0,0.00017528,2]
[373417469,1752994234952,-460.0,0.00017528,2]
[373417470,1752994234961,-460.0,0.00017528,2]
[373417471,1752994234970,-460.0,0.00017528,2]
[373417472,1752994234979,-460.0,0.00017528,2]
[373417473,1752994234988,-460.0,0.00017528,2]
[373417474,1752994234997,-460.0,0.00017528,2]
[373417475,1752994235007,-460.0,0.00017528,2]
[373417476,1752994235016,-460.0,0.00017528,2]
[373417477,1752994235025,-460.0,0.00017528,2]
[373417478,1752994235035,-264.66,0.00017528,2]
[373417479,1752994235044,-460.0,0.00017528,2]
[373417480,1752994235053,-2022.21,0.00017528,2]
[373417481,1752994235062,-460.0,0.00017528,2]
[373417482,1752994235071,-703.9,0.00017528,2]
[373417483,1752994235081,-460.0,0.00017528,2]
[373417484,1752994235090,-460.0,0.00017528,2]
[373417485,1752994235099,-685.67,0.00017528,2]
[373417486,1752994235108,-460.0,0.00017528,2]
[373417487,1752994235118,-460.0,0.00017528,2]
[373417488,1752994235127,-1785.67,0.00017528,2]
[373417489,1752994235137,-460.0,0.00017528,2]
[373417490,1752994235146,-2995.61,0.00017528,2]
[373417491,1752994235155,-628.57,0.00017528,2]
[373417492,1752994235166,-460.0,0.00017528,2]
[373417493,1752994235175,-460.0,0.00017528,2]
[373417494,1752994235185,-460.0,0.00017528,2]
[373417495,1752994235194,-460.0,0.00017528,2]
[373417496,1752994235204,-460.0,0.00017528,2]
[373417497,1752994235213,-460.0,0.00017528,2]
[373417498,1752994235223,-460.0,0.00017528,2]
[373417499,1752994235232,-460.0,0.00017528,2]
[373417500,1752994235242,-460.0,0.00017528,2]
[373417501,1752994235252,-1636.28,0.00017528,2]
[373417502,1752994235261,-655.07,0.00017528,2]
[373417503,1752994235271,-460.0,0.00017528,2]
[373417504,1752994235280,-460.0,0.00017528,2]
[373417505,1752994235290,-460.0,0.00017528,2]
[373417506,1752994235299,-460.0,0.00017528,2]
[373417507,1752994235308,-460.0,0.00017528,2]
[373417508,1752994235317,-460.0,0.00017528,2]
[373417509,1752994235326,-500.0,0.00017528,2]
[373417510,1752994235335,-500.0,0.00017528,2]
[373417511,1752994235345,-200.0,0.00017528,2]
[373417512,1752994235354,-500.0,0.00017528,2]
[373417513,1752994235364,-460.0,0.00017529,2]
[373417514,1752994235373,-460.0,0.00017529,2]
[373417515,1752994235382,-460.0,0.00017529,2]
[373417516,1752994235391,-460.0,0.00017529,2]
[373417517,1752994235401,-460.0,0.00017529,2]
[373417518,1752994235410,-560.67393125,0.00017529,2]
[373417519,1752994235420,-460.0,0.00017529,2]
[373417520,1752994235429,-460.0,0.00017529,2]
[373417521,1752994235438,-460.0,0.00017529,2]
[373417522,1752994235447,-461.4521134,0.00017529,2]
[373417523,1752994235456,-465.84435024,0.00017529,2]
[373417524,1752994235466,-460.0,0.00017529,2]
[373417525,1752994235475,-460.0,0.00017529,2]
[373417526,1752994235485,-173.52890661,0.00017529,2]
[373417527,1752994235494,-460.0,0.00017529,2]
[373417528,1752994235503,-954.95,0.00017529,2]
[373417529,1752994235512,-460.0,0.00017529,2]
[373417530,1752994235523,-460.0,0.00017529,2]
[373417531,1752994235531,-1266.77,0.00017529,2]
[373417532,1752994235541,-460.0,0.00017529,2]
[373417533,1752994235550,-460.0,0.00017529,2]
[373417534,1752994235560,-952.7,0.00017529,2]
[373417535,1752994235571,-460.0,0.0001753,2]
[373417536,1752994235581,-460.0,0.0001753,2]
[373417537,1752994235590,-460.0,0.0001753,2]
[373417538,1752994235599,-460.0,0.0001753,2]
[373417539,1752994235609,-460.0,0.0001753,2]
[373417540,1752994235618,-460.0,0.0001753,2]
[373417541,1752994235627,-502.7,0.0001753,2]
[373417542,1752994235637,-460.0,0.0001753,2]
[373417543,1752994235646,-341.61902487,0.0001753,2]
[373417544,1752994235656,-460.0,0.0001753,2]
[373417545,1752994235665,-196.81233458,0.0001753,2]
[373417546,1752994235675,-581.81939396,0.0001753,2]
[373417547,1752994235684,-261.80339515,0.0001753,2]
[373417548,1752994235693,-679.03,0.0001753,2]
[373417549,1752994235703,-460.0,0.0001753,2]
[373417550,1752994235712,-460.0,0.0001753,2]
[373417551,1752994235721,-460.0,0.0001753,2]
[373417552,1752994235731,-460.0,0.0001753,2]
[373417553,1752994235740,-460.0,0.0001753,2]
[373417554,1752994235750,-470.44305965,0.0001753,2]
[373417555,1752994235759,-193.07,0.0001753,2]
[373417556,1752994235769,-460.0,0.0001753,2]
[373417557,1752994235779,-485.91347824,0.0001753,2]
[373417558,1752994235788,-460.0,0.0001753,2]
[373417559,1752994235797,-460.0,0.0001753,2]
[373417560,1752994235807,-460.0,0.00017531,2]
[373417561,1752994235816,-1508.08,0.00017531,2]
[373417562,1752994235825,-312.12986255,0.00017531,2]
[373417563,1752994235834,-460.0,0.00017531,2]
[373417564,1752994235843,-460.0,0.00017531,2]
[373417565,1752994235853,-523.59,0.00017531,2]
[373417566,1752994235863,-460.0,0.00017531,2]
[373417567,1752994235872,-460.0,0.00017532,2]
[373417568,1752994235882,-460.0,0.00017532,2]
[373417569,1752994235892,-563.19546863,0.00017532,2]
[373417570,1752994235901,-460.0,0.00017532,2]
[373417571,1752994235910,-460.0,0.00017532,2]
[373417572,1752994235920,-680.5,0.00017532,2]
[373417573,1752994235929,-952.62,0.00017532,2]
[373417574,1752994235938,-1711.89,0.00017534,2]
[373417575,1752994235947,-460.0,0.00017534,2]
[373417576,1752994235957,-1410.71,0.00017634,2]
[373417577,1752994235966,-346.6,0.00017634,2]
[373417578,1752994235975,-3997.14,0.00017634,2]
[373417579,1752994235985,-1333.4,0.00017634,2]
[373417580,1752994235994,-460.0,0.00017634,2]
[373417581,1752994236003,-536.71585407,0.00017701,2]
[373417582,1752994236013,-252.1469697,0.00017741,2]
[373417583,1752994236022,-460.0,0.00017801,2]
[373417584,1752994236032,-460.0,0.00017801,2]
[373417585,1752994236041,-206.81,0.00017801,2]
[373417586,1752994236050,-460.0,0.00017801,2]
[373417587,1752994236059,-460.0,0.00017801,2]
[373417588,1752994236068,-460.0,0.00017801,2]
[373417589,1752994236077,-1125.14,0.00017801,2]
[373417590,1752994236086,-460.0,0.00017802,2]
[373417591,1752994236096,-460.0,0.00017802,2]
[373417592,1752994236106,-460.0,0.00017802,2]
[373417593,1752994236115,-460.0,0.00017802,2]
[373417594,1752994236124,-572.94459415,0.00017802,2]
[373417595,1752994236134,-460.0,0.00017802,2]
[373417596,1752994236143,-460.0,0.00017802,2]
[373417597,1752994236152,-235.04,0.00017802,2]
[373417598,1752994236161,-460.0,0.00017802,2]
[373417599,1752994236171,-460.0,0.00017802,2]
[373417600,1752994236181,-460.0,0.00017802,2]
[373417601,1752994236191,-601.45,0.00017802,2]
[373417602,1752994236202,-2022.21,0.00017802,2]
[373417603,1752994236211,-460.0,0.00017802,2]
[373417604,1752994236221,-703.9,0.00017802,2]
[373417605,1752994236231,-460.0,0.00017802,2]
[373417606,1752994236241,-460.0,0.00017802,2]
[373417607,1752994236250,-685.67,0.00017802,2]
[373417608,1752994236259,-460.0,0.00017802,2]
[373417609,1752994236269,-460.0,0.00017802,2]
[373417610,1752994236278,-1785.67,0.00017802,2]
[373417611,1752994236287,-460.0,0.00017802,2]
[373417612,1752994236297,-2995.61,0.00017802,2]
[373417613,1752994236308,-628.57,0.00017802,2]
[373417614,1752994236318,-460.0,0.00017802,2]
[373417615,1752994236327,-460.0,0.00017802,2]
[373417616,1752994236337,-460.0,0.00017802,2]
[373417617,1752994236347,-460.0,0.00017802,2]
[373417618,1752994236357,-460.0,0.00017802,2]
[373417619,1752994236366,-460.0,0.00017802,2]
[373417620,1752994236376,-460.0,0.00017802,2]
[373417621,1752994236387,-460.0,0.00017802,2]
[373417622,1752994236396,-460.0,0.00017802,2]
[373417623,1752994236406,-1636.28,0.00017802,2]
[373417624,1752994236415,-655.07,0.00017802,2]
[373417625,1752994236424,-460.0,0.00017802,2]
[373417626,1752994236436,-460.0,0.00017802,2]
[373417627,1752994236445,-460.0,0.00017802,2]
[373417628,1752994236455,-460.0,0.00017802,2]
[373417629,1752994236465,-460.0,0.00017802,2]
[373417630,1752994236475,-460.0,0.00017802,2]
[373417631,1752994236486,-460.0,0.00017803,2]
[373417632,1752994236497,-460.0,0.00017803,2]
[373417633,1752994236507,-460.0,0.00017803,2]
[373417634,1752994236517,-460.0,0.00017803,2]
[373417635,1752994236526,-460.0,0.00017803,2]
[373417636,1752994236536,-954.95,0.00017803,2]
[373417637,1752994236545,-460.0,0.00017803,2]
[373417638,1752994236554,-209.0977,0.00017803,2]
[373417639,1752994236567,-1266.77,0.00017803,2]
[373417640,1752994236576,-460.0,0.00017803,2]
[373417641,1752994236586,-460.0,0.00017803,2]
[373417642,1752994236596,-460.0,0.00017804,2]
[373417643,1752994236606,-460.0,0.00017804,2]
[373417644,1752994236618,-460.0,0.00017804,2]
[373417645,1752994236628,-502.7,0.00017804,2]
[373417646,1752994236639,-328.35,0.00017804,2]
[373417647,1752994236648,-481.36376178,0.00017804,2]
[373417648,1752994236658,-679.03,0.00017804,2]
[373417649,1752994236667,-460.0,0.00017804,2]
[373417650,1752994236677,-460.0,0.00017804,2]
[373417651,1752994236687,-191.09162583,0.00017804,2]
[373417652,1752994236697,-460.0,0.00017804,2]
[373417653,1752994236706,-460.0,0.00017804,2]
[373417654,1752994236715,-460.0,0.00017804,2]
[373417655,1752994236725,-460.0,0.00017805,2]
[373417656,1752994236735,-1508.08,0.00017805,2]
[373417657,1752994236744,-451.31,0.00017805,2]
[373417658,1752994236754,-460.0,0.00017805,2]
[373417659,1752994236765,-523.59,0.00017805,2]
[373417660,1752994236775,-460.0,0.00017805,2]
[373417661,1752994236785,-460.0,0.00017806,2]
[373417662,1752994236795,-460.0,0.00017806,2]
[373417663,1752994236804,-513.35514288,0.00017806,2]
[373417664,1752994236815,-680.5,0.00017806,2]
[373417665,1752994236824,-952.62,0.00017806,2]
[373417666,1752994236834,-1711.89,0.00017808,2]
[373417667,1752994236844,-460.0,0.00017808,2]
[373417668,1752994236853,-3598.97233991,0.000179,2]
[373417669,1752994236864,-1410.71,0.00017908,2]
[373417670,1752994236873,-3997.14,0.00017908,2]
[373417671,1752994236885,-1333.4,0.00017908,2]
[373417672,1752994236895,-460.0,0.00017908,2]
[373417673,1752994236905,-155.0,0.00017908,2]
[373417674,1752994236914,-5627.42291273,0.00017975,2]
[373417675,1752994236925,-10462.58619643,0.00018,2]
[373417676,1752994236934,-154.59619688,0.00018,2]
[373417677,1752994236944,-19407.92206008,0.00018,2]
[373417678,1752994236955,-12706.42004016,0.00018,2]
[373417679,1752994236966,-460.0,0.00018075,2]
[373417680,1752994236975,-206.81,0.00018075,2]
[373417681,1752994236985,-460.0,0.00018075,2]
[373417682,1752994236995,-460.0,0.00018075,2]
[373417683,1752994237005,-460.0,0.00018075,2]
[373417684,1752994237015,-1125.14,0.00018075,2]
[373417685,1752994237025,-460.0,0.00018076,2]
[373417686,1752994237034,-164.31,0.00018076,2]
[373417687,1752994237044,-460.0,0.00018076,2]
[373417688,1752994237054,-460.0,0.00018076,2]
[373417689,1752994237063,-460.0,0.00018076,2]
[373417690,1752994237073,-460.0,0.00018076,2]
[373417691,1752994237083,-460.0,0.00018076,2]
[373417692,1752994237092,-460.0,0.00018076,2]
[373417693,1752994237101,-460.0,0.00018076,2]
[373417694,1752994237111,-2022.21,0.00018076,2]
[373417695,1752994237121,-460.0,0.00018076,2]
[373417696,1752994237131,-703.9,0.00018076,2]
[373417697,1752994237140,-460.0,0.00018076,2]
[373417698,1752994237149,-460.0,0.00018076,2]
[373417699,1752994237159,-685.67,0.00018076,2]
[373417700,1752994237169,-460.0,0.00018076,2]
[373417701,1752994237178,-460.0,0.00018076,2]
[373417702,1752994237188,-1785.67,0.00018076,2]
[373417703,1752994237197,-460.0,0.00018076,2]
[373417704,1752994237207,-2995.61,0.00018076,2]
[373417705,1752994237216,-628.57,0.00018076,2]
[373417706,1752994237225,-460.0,0.00018076,2]
[373417707,1752994237234,-460.0,0.00018076,2]
[373417708,1752994237243,-518.06348051,0.00018076,2]
[373417709,1752994237253,-460.0,0.00018076,2]
[373417710,1752994237262,-460.0,0.00018076,2]
[373417711,1752994237272,-460.0,0.00018076,2]
[373417712,1752994237281,-460.0,0.00018076,2]
[373417713,1752994237290,-460.0,0.00018076,2]
[373417714,1752994237299,-460.0,0.00018076,2]
[373417715,1752994237309,-1636.28,0.00018076,2]
[373417716,1752994237318,-655.07,0.00018076,2]
[373417717,1752994237328,-460.0,0.00018076,2]
[373417718,1752994237337,-460.0,0.00018076,2]
[373417719,1752994237346,-460.0,0.00018076,2]
[373417720,1752994237355,-460.0,0.00018076,2]
[373417722,1752994237476,-460.0,0.00018076,2]
[373417724,1752994237487,-460.0,0.00018076,2]
[373417725,1752994237499,-460.0,0.00018077,2]
[373417726,1752994237515,-473.09714988,0.00018077,2]
[373417727,1752994237525,-460.0,0.00018077,2]
[373417728,1752994237535,-575.91424909,0.00018077,2]
[373417730,1752994237544,-460.0,0.00018077,2]
[373417731,1752994237554,-954.95,0.00018077,2]
[373417732,1752994237568,-460.0,0.00018077,2]
[373417733,1752994237578,-1266.77,0.00018077,2]
[373417734,1752994237587,-460.0,0.00018077,2]
[373417735,1752994237597,-460.0,0.00018077,2]
[373417736,1752994237607,-460.0,0.00018078,2]
[373417737,1752994237616,-387.94412228,0.00018078,2]
[373417738,1752994237625,-460.0,0.00018078,2]